[Event "*** Titled Tuesday Blitz"]
[Site "Chess.com"]
[Date "2021.04.27"]
[Round "3"]
[White "ElCoachRene"]
[Black "AttackSparrow"]
[Result "1-0"]
[WhiteElo "2206"]
[BlackElo "2493"]
[TimeControl "180+1"]
[EndTime "10:28:34 PDT"]
[Termination "ElCoachRene won by checkmate"]

1. d4 {[%clk 0:03:00.9]} 1... Nf6 {[%clk 0:02:53.2]} 2. Bf4 {[%clk 0:03:01.3]}
2... g6 {[%clk 0:02:49.2]} 3. e3 {[%clk 0:03:01.6]} 3... Bg7 {[%clk 0:02:48.8]}
4. Nf3 {[%clk 0:03:02.2]} 4... O-O {[%clk 0:02:49.2]} 5. Nbd2 {[%clk 0:03:02.1]}
5... d6 {[%clk 0:02:49.7]} 6. h3 {[%clk 0:03:02.1]} 6... b6 {[%clk 0:02:49.8]}
7. Bc4 {[%clk 0:02:59.4]} 7... Bb7 {[%clk 0:02:47.8]} 8. O-O {[%clk 0:02:57.4]}
8... Nbd7 {[%clk 0:02:47.8]} 9. Qe2 {[%clk 0:02:57.3]} 9... e6 {[%clk
0:02:11.1]} 10. Ba6 {[%clk 0:02:52.1]} 10... Bxa6 {[%clk 0:02:06.4]} 11. Qxa6
{[%clk 0:02:53]} 11... Qe7 {[%clk 0:02:05.9]} 12. Rfd1 {[%clk 0:02:51]} 12... e5
{[%clk 0:02:04.8]} 13. dxe5 {[%clk 0:02:51.9]} 13... dxe5 {[%clk 0:02:04.4]} 14.
Bg3 {[%clk 0:02:49.7]} 14... Nc5 {[%clk 0:01:57.9]} 15. Qc4 {[%clk 0:02:48.4]}
15... e4 {[%clk 0:01:53.6]} 16. Nd4 {[%clk 0:02:43.4]} 16... Nh5 {[%clk
0:01:40.7]} 17. Bh2 {[%clk 0:02:40.9]} 17... Qg5 {[%clk 0:01:03.5]} 18. b4
{[%clk 0:02:28.5]} 18... Na4 {[%clk 0:00:45.9]} 19. Nxe4 {[%clk 0:02:23.6]}
19... Qe7 {[%clk 0:00:42.2]} 20. Nc6 {[%clk 0:02:16.1]} 20... Qe8 {[%clk
0:00:36.4]} 21. c3 {[%clk 0:02:05]} 21... Nb2 {[%clk 0:00:35.2]} 22. Qd5 {[%clk
0:01:51.2]} 22... Nxd1 {[%clk 0:00:35]} 23. Rxd1 {[%clk 0:01:51.9]} 23... Nf6
{[%clk 0:00:35]} 24. Nxf6+ {[%clk 0:01:46.8]} 24... Bxf6 {[%clk 0:00:35.9]} 25.
Bf4 {[%clk 0:01:35.2]} 25... Bxc3 {[%clk 0:00:34.8]} 26. Bg5 {[%clk 0:01:20.9]}
26... Bg7 {[%clk 0:00:33.5]} 27. Be7 {[%clk 0:01:12.5]} 27... Kh8 {[%clk
0:00:21]} 28. Bxf8 {[%clk 0:01:12.1]} 28... Qxf8 {[%clk 0:00:21.9]} 29. Qd7
{[%clk 0:01:04.8]} 29... a5 {[%clk 0:00:10.4]} 30. b5 {[%clk 0:01:03.3]} 30...
Rc8 {[%clk 0:00:08.9]} 31. Ne7 {[%clk 0:01:00.7]} 31... Re8 {[%clk 0:00:08.3]}
32. Nc6 {[%clk 0:00:53.1]} 32... Rc8 {[%clk 0:00:05.4]} 33. Qe7 {[%clk
0:00:42.3]} 33... Qg8 {[%clk 0:00:02.5]} 34. Rd7 {[%clk 0:00:39.7]} 34... Re8
{[%clk 0:00:02]} 35. Qxf7 {[%clk 0:00:39.1]} 35... Qxf7 {[%clk 0:00:02.9]} 36.
Rxf7 {[%clk 0:00:39.2]} 36... Rc8 {[%clk 0:00:03.8]} 37. Ne7 {[%clk 0:00:38.4]}
37... Rd8 {[%clk 0:00:03.7]} 38. Nc6 {[%clk 0:00:37.8]} 38... h5 {[%clk
0:00:03.6]} 39. Nxd8 {[%clk 0:00:35.2]} 39... Kg8 {[%clk 0:00:02.5]} 40. Rxc7
{[%clk 0:00:34.8]} 40... Be5 {[%clk 0:00:02.7]} 41. Rc8 {[%clk 0:00:33.5]} 41...
Kg7 {[%clk 0:00:02.8]} 42. Nc6 {[%clk 0:00:33.5]} 42... Bc3 {[%clk 0:00:02.5]}
43. Rb8 {[%clk 0:00:31.5]} 43... Kf6 {[%clk 0:00:01.9]} 44. Rxb6 {[%clk
0:00:31.6]} 44... Kf5 {[%clk 0:00:02.3]} 45. Ra6 {[%clk 0:00:29.6]} 45... Kf6
{[%clk 0:00:01.7]} 46. b6 {[%clk 0:00:29]} 46... Kf5 {[%clk 0:00:02.5]} 47. b7
{[%clk 0:00:29.4]} 47... Be5 {[%clk 0:00:03.1]} 48. Nxe5 {[%clk 0:00:28.1]}
48... Kxe5 {[%clk 0:00:01.5]} 49. b8=Q+ {[%clk 0:00:27.8]} 49... Kd5 {[%clk
0:00:01.9]} 50. Qb5+ {[%clk 0:00:26.6]} 50... Ke4 {[%clk 0:00:01.6]} 51. Re6#
{[%clk 0:00:23.5]} 1-0

[Event "*** Titled Tuesday Blitz"]
[Site "Chess.com"]
[Date "2021.04.27"]
[Round "3"]
[White "StockholmMissile"]
[Black "PavelChernomordik"]
[Result "1-0"]
[WhiteElo "2600"]
[BlackElo "2378"]
[TimeControl "180+1"]
[EndTime "10:28:35 PDT"]
[Termination "StockholmMissile won on time"]

1. Nf3 {[%clk 0:03:00.9]} 1... g6 {[%clk 0:02:59.4]} 2. e4 {[%clk 0:02:59.8]}
2... Bg7 {[%clk 0:02:59.5]} 3. d4 {[%clk 0:02:59.3]} 3... d6 {[%clk 0:02:59.3]}
4. Bc4 {[%clk 0:02:59.1]} 4... e6 {[%clk 0:02:58.6]} 5. Bb3 {[%clk 0:02:58.6]}
5... b6 {[%clk 0:02:58.3]} 6. c3 {[%clk 0:02:47.8]} 6... Bb7 {[%clk 0:02:57]} 7.
Nbd2 {[%clk 0:02:47.7]} 7... Nd7 {[%clk 0:02:56.8]} 8. Qe2 {[%clk 0:02:46.4]}
8... Ne7 {[%clk 0:02:54.2]} 9. h4 {[%clk 0:02:45.3]} 9... h6 {[%clk 0:02:53.6]}
10. Nf1 {[%clk 0:02:41.7]} 10... c5 {[%clk 0:02:49.6]} 11. Ng3 {[%clk
0:02:39.7]} 11... Qc7 {[%clk 0:02:43.9]} 12. Be3 {[%clk 0:02:38.1]} 12... Nf6
{[%clk 0:02:29.8]} 13. Nd2 {[%clk 0:02:25.1]} 13... h5 {[%clk 0:02:23.3]} 14. f3
{[%clk 0:02:22.3]} 14... a6 {[%clk 0:02:10.8]} 15. a4 {[%clk 0:02:19.8]} 15...
Nd7 {[%clk 0:02:06.8]} 16. Kf2 {[%clk 0:02:17.3]} 16... O-O {[%clk 0:02:01.2]}
17. f4 {[%clk 0:02:07.4]} 17... e5 {[%clk 0:01:45.2]} 18. dxe5 {[%clk
0:02:02.3]} 18... dxe5 {[%clk 0:01:44.6]} 19. f5 {[%clk 0:02:02.3]} 19... Nf6
{[%clk 0:01:42.8]} 20. Kg1 {[%clk 0:01:57.8]} 20... Ng4 {[%clk 0:01:41.8]} 21.
Rf1 {[%clk 0:01:52.6]} 21... Kh7 {[%clk 0:01:39.5]} 22. Nf3 {[%clk 0:01:41]}
22... Nxe3 {[%clk 0:01:11.6]} 23. Qxe3 {[%clk 0:01:38.8]} 23... Bh6 {[%clk
0:01:11]} 24. Ng5+ {[%clk 0:01:36.1]} 24... Bxg5 {[%clk 0:01:02.1]} 25. hxg5
{[%clk 0:01:32.8]} 25... c4 {[%clk 0:01:01.9]} 26. Bc2 {[%clk 0:01:28.9]} 26...
Qc5 {[%clk 0:01:01.2]} 27. Kf2 {[%clk 0:01:17.5]} 27... Rad8 {[%clk 0:00:59.4]}
28. Rd1 {[%clk 0:01:14.3]} 28... Nc6 {[%clk 0:00:53.3]} 29. Ke2 {[%clk
0:01:06.7]} 29... Qxe3+ {[%clk 0:00:51]} 30. Kxe3 {[%clk 0:01:06.4]} 30... b5
{[%clk 0:00:50.9]} 31. axb5 {[%clk 0:01:05]} 31... axb5 {[%clk 0:00:50.6]} 32.
Nxh5 {[%clk 0:00:50.5]} 32... gxh5 {[%clk 0:00:42.9]} 33. Rxh5+ {[%clk
0:00:51.4]} 33... Kg7 {[%clk 0:00:31.3]} 34. Rdh1 {[%clk 0:00:48.8]} 34... Rg8
{[%clk 0:00:29.8]} 35. Bd1 {[%clk 0:00:36.4]} 35... Na5 {[%clk 0:00:23.7]} 36.
Rh7+ {[%clk 0:00:22.1]} 36... Kf8 {[%clk 0:00:22.8]} 37. Bh5 {[%clk 0:00:23]}
37... Rd7 {[%clk 0:00:19.5]} 38. g6 {[%clk 0:00:22.3]} 38... Nb3 {[%clk
0:00:12.8]} 39. gxf7 {[%clk 0:00:15.8]} 39... Rg3+ {[%clk 0:00:10.4]} 40. Kf2
{[%clk 0:00:15.2]} 40... Rg8 {[%clk 0:00:03.7]} 41. fxg8=Q+ {[%clk 0:00:14.5]}
41... Kxg8 {[%clk 0:00:03.5]} 42. Rxd7 {[%clk 0:00:15.4]} 1-0

[Event "*** Titled Tuesday Blitz"]
[Site "Chess.com"]
[Date "2021.04.27"]
[Round "3"]
[White "StarkAst"]
[Black "Kapibara_Warri0r"]
[Result "0-1"]
[WhiteElo "2492"]
[BlackElo "2223"]
[TimeControl "180+1"]
[EndTime "10:28:35 PDT"]
[Termination "Kapibara_Warri0r won by checkmate"]

1. e4 {[%clk 0:02:59.5]} 1... c5 {[%clk 0:02:57.7]} 2. Nc3 {[%clk 0:02:59]} 2...
d6 {[%clk 0:02:55.4]} 3. f4 {[%clk 0:02:58.8]} 3... g6 {[%clk 0:02:53.1]} 4. Nf3
{[%clk 0:02:58.7]} 4... Bg7 {[%clk 0:02:52.6]} 5. Bc4 {[%clk 0:02:58.8]} 5... e6
{[%clk 0:02:50.6]} 6. O-O {[%clk 0:02:58.8]} 6... Ne7 {[%clk 0:02:49.7]} 7. d3
{[%clk 0:02:58.7]} 7... O-O {[%clk 0:02:49.4]} 8. Qe1 {[%clk 0:02:59]} 8... d5
{[%clk 0:02:47.4]} 9. Bb3 {[%clk 0:02:58.4]} 9... Nbc6 {[%clk 0:02:44.1]} 10. f5
{[%clk 0:02:58.6]} 10... d4 {[%clk 0:02:33.6]} 11. f6 {[%clk 0:02:47.2]} 11...
Bxf6 {[%clk 0:02:26.9]} 12. e5 {[%clk 0:02:47.3]} 12... dxc3 {[%clk 0:02:03.2]}
13. exf6 {[%clk 0:02:47.1]} 13... Nd5 {[%clk 0:02:03.4]} 14. Bxd5 {[%clk
0:02:10.8]} 14... exd5 {[%clk 0:02:00.8]} 15. Qh4 {[%clk 0:02:08.7]} 15... h5
{[%clk 0:01:53.3]} 16. bxc3 {[%clk 0:02:03.8]} 16... d4 {[%clk 0:01:41.5]} 17.
cxd4 {[%clk 0:01:43.2]} 17... Nxd4 {[%clk 0:01:42.4]} 18. Bb2 {[%clk 0:01:32.5]}
18... Nxc2 {[%clk 0:01:28.7]} 19. Qf4 {[%clk 0:01:23.9]} 19... Kh7 {[%clk
0:01:28.2]} 20. Ng5+ {[%clk 0:01:22.8]} 20... Kg8 {[%clk 0:01:25.8]} 21. Ne6
{[%clk 0:00:48.1]} 21... fxe6 {[%clk 0:01:10.1]} 22. Qh6 {[%clk 0:00:40.4]}
22... Rf7 {[%clk 0:01:07.6]} 23. Qxg6+ {[%clk 0:00:40.3]} 23... Kf8 {[%clk
0:01:08]} 24. Qxh5 {[%clk 0:00:36.4]} 24... Ke8 {[%clk 0:00:52.5]} 25. Rac1
{[%clk 0:00:33.1]} 25... Ne3 {[%clk 0:00:48.1]} 26. Rfe1 {[%clk 0:00:29.3]}
26... Nd5 {[%clk 0:00:45.4]} 27. Rxc5 {[%clk 0:00:27.9]} 27... Nxf6 {[%clk
0:00:44.2]} 28. Qg6 {[%clk 0:00:17.4]} 28... Ke7 {[%clk 0:00:30.4]} 29. Rf5
{[%clk 0:00:14.4]} 29... Qb6+ {[%clk 0:00:25.8]} 30. Kh1 {[%clk 0:00:11.1]}
30... Qxb2 {[%clk 0:00:23]} 31. Rff1 {[%clk 0:00:10.4]} 31... Bd7 {[%clk
0:00:20.1]} 32. Qg5 {[%clk 0:00:10.5]} 32... Rg8 {[%clk 0:00:17.9]} 33. Rb1
{[%clk 0:00:04.4]} 33... Qxb1 {[%clk 0:00:12.9]} 34. Qf4 {[%clk 0:00:04.8]}
34... Qb6 {[%clk 0:00:09.9]} 35. g3 {[%clk 0:00:04.8]} 35... Bc6+ {[%clk
0:00:09.5]} 36. Rf3 {[%clk 0:00:05.2]} 36... Bxf3+ {[%clk 0:00:09.8]} 37. Qxf3
{[%clk 0:00:06.1]} 37... Qb1+ {[%clk 0:00:10.4]} 38. Kg2 {[%clk 0:00:06.4]}
38... Qb6 {[%clk 0:00:11]} 39. Qf4 {[%clk 0:00:05]} 39... Qc6+ {[%clk
0:00:11.3]} 40. Kh3 {[%clk 0:00:05.1]} 40... Rh7+ {[%clk 0:00:10.1]} 41. Qh4
{[%clk 0:00:05.2]} 41... Rxh4+ {[%clk 0:00:10.3]} 42. gxh4 {[%clk 0:00:04.2]}
42... Qf3# {[%clk 0:00:10]} 0-1

[Event "*** Titled Tuesday Blitz"]
[Site "Chess.com"]
[Date "2021.04.27"]
[Round "3"]
[White "miredenizdogan"]
[Black "Ibrayevnb"]
[Result "0-1"]
[WhiteElo "2235"]
[BlackElo "2466"]
[TimeControl "180+1"]
[EndTime "10:28:35 PDT"]
[Termination "Ibrayevnb won by resignation"]

1. d4 {[%clk 0:03:00.9]} 1... Nf6 {[%clk 0:02:59.5]} 2. c4 {[%clk 0:03:00.9]}
2... e6 {[%clk 0:02:59.6]} 3. Nf3 {[%clk 0:03:00.1]} 3... c5 {[%clk 0:02:58.9]}
4. d5 {[%clk 0:02:59.6]} 4... d6 {[%clk 0:02:59]} 5. Nc3 {[%clk 0:02:59.1]} 5...
exd5 {[%clk 0:02:59.1]} 6. cxd5 {[%clk 0:02:58.9]} 6... g6 {[%clk 0:02:59.6]} 7.
a4 {[%clk 0:02:57.2]} 7... Bg7 {[%clk 0:02:59]} 8. h3 {[%clk 0:02:56.2]} 8...
O-O {[%clk 0:02:56.3]} 9. Bf4 {[%clk 0:02:56.5]} 9... Nh5 {[%clk 0:02:48.8]} 10.
Bh2 {[%clk 0:02:55.9]} 10... f5 {[%clk 0:02:48]} 11. e3 {[%clk 0:02:53.5]} 11...
f4 {[%clk 0:02:48.1]} 12. exf4 {[%clk 0:02:26.4]} 12... Nxf4 {[%clk 0:02:47.5]}
13. Bxf4 {[%clk 0:02:27.3]} 13... Rxf4 {[%clk 0:02:46.8]} 14. Be2 {[%clk
0:02:18.4]} 14... Na6 {[%clk 0:02:18.9]} 15. Qd2 {[%clk 0:02:16.8]} 15... Qf6
{[%clk 0:02:02.6]} 16. O-O {[%clk 0:02:10.6]} 16... Nb4 {[%clk 0:01:45.5]} 17.
Rae1 {[%clk 0:02:04.9]} 17... Bd7 {[%clk 0:01:34]} 18. Nh2 {[%clk 0:02:04.8]}
18... Rf8 {[%clk 0:01:27.2]} 19. Bg4 {[%clk 0:02:00.8]} 19... Bxg4 {[%clk
0:01:21.3]} 20. Nxg4 {[%clk 0:02:01.7]} 20... Qd4 {[%clk 0:01:17.5]} 21. Qe2
{[%clk 0:01:52.3]} 21... h5 {[%clk 0:01:12.8]} 22. Qe6+ {[%clk 0:01:48.7]} 22...
Kh7 {[%clk 0:01:12.1]} 23. Ne3 {[%clk 0:01:40]} 23... R8f6 {[%clk 0:00:39.1]}
24. Qe7 {[%clk 0:01:32.4]} 24... Nd3 {[%clk 0:00:38.2]} 25. Nb5 {[%clk
0:01:25.7]} 25... Qxa4 {[%clk 0:00:34]} 26. Nc3 {[%clk 0:00:51.5]} 26... Qb4
{[%clk 0:00:20]} 27. Re2 {[%clk 0:00:24.4]} 27... Nxb2 {[%clk 0:00:14.9]} 28.
Na2 {[%clk 0:00:22.3]} 28... Qa3 {[%clk 0:00:12.7]} 29. Nc1 {[%clk 0:00:17.9]}
29... Nd3 {[%clk 0:00:12.1]} 30. Nxd3 {[%clk 0:00:14.8]} 30... Qxd3 {[%clk
0:00:11.8]} 31. Rb2 {[%clk 0:00:13.9]} 31... b5 {[%clk 0:00:10.4]} 32. Qxa7
{[%clk 0:00:12.7]} 32... Rf7 {[%clk 0:00:06.6]} 33. Qa2 {[%clk 0:00:06.6]} 33...
Bxb2 {[%clk 0:00:06.6]} 34. Qxb2 {[%clk 0:00:07.5]} 34... Rxf2 {[%clk
0:00:05.9]} 35. Rxf2 {[%clk 0:00:06.9]} 35... Qxe3 {[%clk 0:00:06.2]} 36. Kf1
{[%clk 0:00:07]} 36... Qxf2+ {[%clk 0:00:06.2]} 37. Qxf2 {[%clk 0:00:07.6]}
37... Rxf2+ {[%clk 0:00:06.4]} 38. Kxf2 {[%clk 0:00:08.5]} 38... Kg7 {[%clk
0:00:06.9]} 39. Ke3 {[%clk 0:00:09.4]} 39... Kf6 {[%clk 0:00:07.8]} 40. Ke4
{[%clk 0:00:10.1]} 40... b4 {[%clk 0:00:07.6]} 41. g3 {[%clk 0:00:09.5]} 41...
g5 {[%clk 0:00:07.5]} 42. g4 {[%clk 0:00:09.2]} 42... h4 {[%clk 0:00:07.3]} 43.
Ke3 {[%clk 0:00:07.3]} 43... Ke5 {[%clk 0:00:07.3]} 44. Kd3 {[%clk 0:00:08.2]}
0-1

[Event "*** Titled Tuesday Blitz"]
[Site "Chess.com"]
[Date "2021.04.27"]
[Round "3"]
[White "VladimirBugayev"]
[Black "Alliswell998"]
[Result "0-1"]
[WhiteElo "2248"]
[BlackElo "2439"]
[TimeControl "180+1"]
[EndTime "10:28:35 PDT"]
[Termination "Alliswell998 won on time"]

1. e4 {[%clk 0:02:57.4]} 1... c5 {[%clk 0:03:00.9]} 2. Nc3 {[%clk 0:02:56.6]}
2... a6 {[%clk 0:03:00.5]} 3. g3 {[%clk 0:02:55.8]} 3... b5 {[%clk 0:03:00.2]}
4. Bg2 {[%clk 0:02:55.7]} 4... Bb7 {[%clk 0:02:58.6]} 5. Nh3 {[%clk 0:02:56.2]}
5... e6 {[%clk 0:02:56.1]} 6. d3 {[%clk 0:02:53.1]} 6... g6 {[%clk 0:02:52.9]}
7. O-O {[%clk 0:02:51.4]} 7... Bg7 {[%clk 0:02:53.1]} 8. f4 {[%clk 0:02:51.1]}
8... Ne7 {[%clk 0:02:53.4]} 9. Be3 {[%clk 0:02:36.1]} 9... d6 {[%clk 0:02:50.9]}
10. Qd2 {[%clk 0:02:16.6]} 10... Nbc6 {[%clk 0:02:48.3]} 11. Rae1 {[%clk
0:02:07.8]} 11... Qc7 {[%clk 0:02:45.6]} 12. f5 {[%clk 0:01:59.5]} 12... b4
{[%clk 0:02:39.1]} 13. f6 {[%clk 0:01:51.8]} 13... Bxf6 {[%clk 0:02:19.1]} 14.
Rxf6 {[%clk 0:01:46.7]} 14... bxc3 {[%clk 0:02:19.8]} 15. Qxc3 {[%clk
0:01:45.4]} 15... Ne5 {[%clk 0:02:10.2]} 16. Ref1 {[%clk 0:01:18]} 16... O-O-O
{[%clk 0:01:53.7]} 17. d4 {[%clk 0:01:03.1]} 17... cxd4 {[%clk 0:01:46.3]} 18.
Bxd4 {[%clk 0:00:59.2]} 18... Qxc3 {[%clk 0:01:44.5]} 19. Bxc3 {[%clk
0:00:58.3]} 19... N7c6 {[%clk 0:01:43.4]} 20. Ng5 {[%clk 0:00:55.2]} 20... Rhe8
{[%clk 0:01:15.1]} 21. Nxf7 {[%clk 0:00:54.5]} 21... Rd7 {[%clk 0:01:11.1]} 22.
Ng5 {[%clk 0:00:47.3]} 22... h6 {[%clk 0:01:08.3]} 23. Rxe6 {[%clk 0:00:41.8]}
23... Rg8 {[%clk 0:01:01.2]} 24. Nf3 {[%clk 0:00:39]} 24... Ng4 {[%clk
0:00:59.6]} 25. Bh3 {[%clk 0:00:36.1]} 25... h5 {[%clk 0:00:57]} 26. Nh4 {[%clk
0:00:31.3]} 26... g5 {[%clk 0:00:48.4]} 27. Nf5 {[%clk 0:00:28.6]} 27... Kb8
{[%clk 0:00:38.2]} 28. Rd1 {[%clk 0:00:27.4]} 28... d5 {[%clk 0:00:35.1]} 29.
exd5 {[%clk 0:00:25.7]} 29... Nd8 {[%clk 0:00:33.4]} 30. Re7 {[%clk 0:00:23.7]}
30... Rxe7 {[%clk 0:00:31.1]} 31. Nxe7 {[%clk 0:00:23.6]} 31... Re8 {[%clk
0:00:32]} 32. d6 {[%clk 0:00:21]} 32... Ne3 {[%clk 0:00:19.6]} 33. Re1 {[%clk
0:00:21.1]} 33... Nc4 {[%clk 0:00:18.6]} 34. Bd7 {[%clk 0:00:18.9]} 34... Rf8
{[%clk 0:00:18.2]} 35. Be6 {[%clk 0:00:18.6]} 35... Nxd6 {[%clk 0:00:18.3]} 36.
Ng6 {[%clk 0:00:15.6]} 36... Re8 {[%clk 0:00:17.7]} 37. Bd7 {[%clk 0:00:12.7]}
37... Rg8 {[%clk 0:00:16.5]} 38. Be5 {[%clk 0:00:11.6]} 38... Rxg6 {[%clk
0:00:16.1]} 39. Bf5 {[%clk 0:00:10.3]} 39... Rh6 {[%clk 0:00:15.6]} 40. Rd1
{[%clk 0:00:10]} 40... Nf7 {[%clk 0:00:15.5]} 41. Bc3 {[%clk 0:00:08.1]} 41...
Ka8 {[%clk 0:00:15.3]} 42. Bd3 {[%clk 0:00:06.4]} 42... Re6 {[%clk 0:00:14.8]}
43. Rf1 {[%clk 0:00:06.4]} 43... Ne5 {[%clk 0:00:14.8]} 44. Rf8+ {[%clk
0:00:05.6]} 44... Nc8 {[%clk 0:00:11.9]} 45. Bf5 {[%clk 0:00:05.2]} 45... Ng6
{[%clk 0:00:06.3]} 46. Rxc8+ {[%clk 0:00:02.6]} 46... Bxc8 {[%clk 0:00:07.2]}
0-1

[Event "*** Titled Tuesday Blitz"]
[Site "Chess.com"]
[Date "2021.04.27"]
[Round "3"]
[White "HanSchut"]
[Black "Love_craft"]
[Result "0-1"]
[WhiteElo "2291"]
[BlackElo "2554"]
[TimeControl "180+1"]
[EndTime "10:28:37 PDT"]
[Termination "Love_craft won on time"]

1. e4 {[%clk 0:03:00.9]} 1... g6 {[%clk 0:02:59.9]} 2. d4 {[%clk 0:03:00.8]}
2... Bg7 {[%clk 0:02:59.9]} 3. Nc3 {[%clk 0:03:01.4]} 3... d6 {[%clk 0:03:00.3]}
4. f4 {[%clk 0:03:01.3]} 4... a6 {[%clk 0:02:59.8]} 5. Nf3 {[%clk 0:03:01.7]}
5... b5 {[%clk 0:03:00.2]} 6. e5 {[%clk 0:03:01.1]} 6... Bb7 {[%clk 0:03:00.6]}
7. Bd3 {[%clk 0:02:58.7]} 7... e6 {[%clk 0:02:59]} 8. Qe2 {[%clk 0:02:57.9]}
8... Ne7 {[%clk 0:02:58.8]} 9. Be4 {[%clk 0:02:53]} 9... Bxe4 {[%clk 0:02:58]}
10. Nxe4 {[%clk 0:02:53]} 10... Nf5 {[%clk 0:02:57.7]} 11. O-O {[%clk
0:02:41.3]} 11... Nd7 {[%clk 0:02:57.2]} 12. g4 {[%clk 0:02:31.8]} 12... Nh4
{[%clk 0:02:57.1]} 13. Nxh4 {[%clk 0:02:24.3]} 13... Qxh4 {[%clk 0:02:58]} 14.
exd6 {[%clk 0:02:14.5]} 14... Bxd4+ {[%clk 0:02:57.6]} 15. Kg2 {[%clk
0:02:05.1]} 15... cxd6 {[%clk 0:02:21.9]} 16. Nxd6+ {[%clk 0:01:59.7]} 16... Ke7
{[%clk 0:02:22.2]} 17. Rd1 {[%clk 0:01:19.4]} 17... Bg7 {[%clk 0:02:11.8]} 18.
c3 {[%clk 0:01:08.7]} 18... h5 {[%clk 0:02:09.8]} 19. g5 {[%clk 0:01:08.9]}
19... Qg4+ {[%clk 0:02:07.4]} 20. Kf1 {[%clk 0:00:52.8]} 20... Qxe2+ {[%clk
0:02:00.3]} 21. Kxe2 {[%clk 0:00:52.8]} 21... Rhd8 {[%clk 0:02:00]} 22. Be3
{[%clk 0:00:50.2]} 22... Kf8 {[%clk 0:01:05.3]} 23. Nb7 {[%clk 0:00:45.1]} 23...
Ke8 {[%clk 0:00:55.9]} 24. Nxd8 {[%clk 0:00:44.9]} 24... Rxd8 {[%clk 0:00:51.9]}
25. Rd2 {[%clk 0:00:45.3]} 25... Rc8 {[%clk 0:00:45]} 26. Rad1 {[%clk
0:00:43.2]} 26... Nb8 {[%clk 0:00:40.2]} 27. Bb6 {[%clk 0:00:36.6]} 27... Nc6
{[%clk 0:00:40.1]} 28. Rd7 {[%clk 0:00:32.8]} 28... e5 {[%clk 0:00:16.2]} 29.
Kf3 {[%clk 0:00:20.6]} 29... exf4 {[%clk 0:00:15.2]} 30. Kxf4 {[%clk 0:00:09.6]}
30... Be5+ {[%clk 0:00:15.2]} 31. Kf3 {[%clk 0:00:09.8]} 31... Bxh2 {[%clk
0:00:15.3]} 32. Rb7 {[%clk 0:00:08.8]} 32... Kf8 {[%clk 0:00:10.8]} 33. Bc5+
{[%clk 0:00:08.7]} 33... Ke8 {[%clk 0:00:05.9]} 34. Re1+ {[%clk 0:00:08.2]}
34... Ne5+ {[%clk 0:00:04.5]} 35. Kg2 {[%clk 0:00:07.4]} 35... Rxc5 {[%clk
0:00:03]} 36. Kxh2 {[%clk 0:00:07.3]} 36... Kf8 {[%clk 0:00:03.6]} 37. Rf1
{[%clk 0:00:05.1]} 37... Kg7 {[%clk 0:00:02.2]} 38. Kh3 {[%clk 0:00:05.5]} 38...
Rd5 {[%clk 0:00:02]} 39. Kg2 {[%clk 0:00:04.3]} 39... Kg8 {[%clk 0:00:02.2]} 40.
Rf2 {[%clk 0:00:04.4]} 40... h4 {[%clk 0:00:02.3]} 41. Re7 {[%clk 0:00:03.2]}
41... Nd3 {[%clk 0:00:01.8]} 42. Rfxf7 {[%clk 0:00:02.6]} 42... Rxg5+ {[%clk
0:00:02.4]} 0-1

[Event "*** Titled Tuesday Blitz"]
[Site "Chess.com"]
[Date "2021.04.27"]
[Round "3"]
[White "stolencandy13"]
[Black "jraosam"]
[Result "1-0"]
[WhiteElo "2482"]
[BlackElo "1862"]
[TimeControl "180+1"]
[EndTime "10:28:37 PDT"]
[Termination "stolencandy13 won by checkmate"]

1. d4 {[%clk 0:02:54.2]} 1... d5 {[%clk 0:02:45.6]} 2. Bf4 {[%clk 0:02:47.4]}
2... Nf6 {[%clk 0:02:45]} 3. Nf3 {[%clk 0:02:46.9]} 3... c5 {[%clk 0:02:44.1]}
4. e3 {[%clk 0:02:47.1]} 4... Nc6 {[%clk 0:02:44.4]} 5. Nc3 {[%clk 0:02:45.8]}
5... a6 {[%clk 0:02:43.3]} 6. Bd3 {[%clk 0:02:39.3]} 6... e6 {[%clk 0:02:37.6]}
7. O-O {[%clk 0:02:38.8]} 7... Be7 {[%clk 0:02:37.8]} 8. Ne5 {[%clk 0:02:33.9]}
8... O-O {[%clk 0:02:35]} 9. Bg5 {[%clk 0:02:14.8]} 9... cxd4 {[%clk 0:01:56.3]}
10. Nxc6 {[%clk 0:02:11.1]} 10... bxc6 {[%clk 0:01:57.2]} 11. exd4 {[%clk
0:02:11.5]} 11... h6 {[%clk 0:01:56.5]} 12. Bf4 {[%clk 0:02:08]} 12... c5 {[%clk
0:01:55.6]} 13. dxc5 {[%clk 0:02:01.1]} 13... Bxc5 {[%clk 0:01:54.2]} 14. Qf3
{[%clk 0:01:55.9]} 14... Re8 {[%clk 0:01:51.3]} 15. Rfe1 {[%clk 0:01:51.7]}
15... Bd6 {[%clk 0:01:50.2]} 16. Bxd6 {[%clk 0:01:26.3]} 16... Qxd6 {[%clk
0:01:51.1]} 17. Rad1 {[%clk 0:01:26.1]} 17... Rb8 {[%clk 0:01:46.6]} 18. b3
{[%clk 0:01:24.3]} 18... Qb4 {[%clk 0:01:44.7]} 19. Ne2 {[%clk 0:01:05]} 19...
e5 {[%clk 0:01:43.7]} 20. c3 {[%clk 0:01:00.7]} 20... Qa5 {[%clk 0:01:40.4]} 21.
Bb1 {[%clk 0:01:00.3]} 21... Bb7 {[%clk 0:01:16.3]} 22. h3 {[%clk 0:00:55.6]}
22... Qc7 {[%clk 0:01:15.4]} 23. Qg3 {[%clk 0:00:55.1]} 23... Ne4 {[%clk
0:01:09.4]} 24. Bxe4 {[%clk 0:00:53.6]} 24... dxe4 {[%clk 0:01:10.3]} 25. c4
{[%clk 0:00:53.6]} 25... f5 {[%clk 0:01:09.1]} 26. Nc3 {[%clk 0:00:51.3]} 26...
Qa5 {[%clk 0:00:54]} 27. Rd7 {[%clk 0:00:48.4]} 27... g5 {[%clk 0:00:42.2]} 28.
Red1 {[%clk 0:00:42.1]} 28... Bc8 {[%clk 0:00:12.1]} 29. R7d5 {[%clk 0:00:37.9]}
29... f4 {[%clk 0:00:10.8]} 30. Rxa5 {[%clk 0:00:34.7]} 30... fxg3 {[%clk
0:00:10.4]} 31. fxg3 {[%clk 0:00:35.6]} 31... Bb7 {[%clk 0:00:08.3]} 32. Nd5
{[%clk 0:00:32.6]} 32... Kf7 {[%clk 0:00:07.1]} 33. Rf1+ {[%clk 0:00:28.3]}
33... Kg7 {[%clk 0:00:07.5]} 34. Rc5 {[%clk 0:00:27.5]} 34... Rbc8 {[%clk
0:00:07]} 35. Rxc8 {[%clk 0:00:27]} 35... Rxc8 {[%clk 0:00:07.9]} 36. Ne3 {[%clk
0:00:24.9]} 36... Rd8 {[%clk 0:00:07.7]} 37. Rd1 {[%clk 0:00:25]} 37... Rd3
{[%clk 0:00:04]} 38. Kf2 {[%clk 0:00:21.9]} 38... Kf6 {[%clk 0:00:04]} 39. h4
{[%clk 0:00:16.1]} 39... h5 {[%clk 0:00:02.7]} 40. Ke2 {[%clk 0:00:14.1]} 40...
Rxd1 {[%clk 0:00:01.8]} 41. Nxd1 {[%clk 0:00:14.1]} 41... gxh4 {[%clk
0:00:02.1]} 42. gxh4 {[%clk 0:00:13.7]} 42... Kf5 {[%clk 0:00:03]} 43. Ne3+
{[%clk 0:00:13.2]} 43... Kf4 {[%clk 0:00:03.3]} 44. Kf2 {[%clk 0:00:13]} 44...
Bc6 {[%clk 0:00:01.8]} 45. g3# {[%clk 0:00:13.5]} 1-0